bitfinex/quotes_BTCUSD_20230905
["timestamp","ask_amount","ask_price","bid_price","bid_amount"]
[1693930389189,2.72942283,25809.0,25808.0,0.08597058]
[1693930392949,2.88720593,25809.0,25808.0,0.08597058]
[1693930393150,2.0799091,25809.0,25808.0,0.08597058]
[1693930393364,0.4276631,25809.0,25808.0,0.05]
[1693930393743,0.4276631,25809.0,25808.0,0.09105839]
[1693930394787,1.9775091,25809.0,25808.0,0.09105839]
[1693930395440,1.9775091,25809.0,25808.0,0.86601139]
[1693930395441,0.26988,25809.0,25808.0,0.86601139]
[1693930395641,0.26988,25809.0,25808.0,1.56601139]
[1693930395999,0.0348,25809.0,25808.0,3.60496266]
[1693930396471,0.0948,25809.0,25808.0,3.60496266]
[1693930396879,0.0348,25809.0,25808.0,3.60496266]
[1693930397094,0.0148,25809.0,25808.0,4.00186266]
[1693930397298,0.0148,25809.0,25808.0,4.02498266]
[1693930397503,0.0148,25809.0,25808.0,4.02378266]
[1693930397687,0.0148,25809.0,25808.0,4.02354266]
[1693930397910,0.0148,25809.0,25808.0,4.02234266]
[1693930398116,0.0148,25809.0,25808.0,3.97198266]
[1693930398315,0.0148,25809.0,25808.0,3.98876266]
[1693930398518,0.0148,25809.0,25808.0,4.01070266]
[1693930398738,0.0148,25809.0,25808.0,3.98510266]
[1693930398967,0.0148,25809.0,25808.0,3.98498266]
[1693930399198,0.0148,25809.0,25808.0,4.00854266]
[1693930399430,0.0148,25809.0,25808.0,4.01172266]
[1693930399692,0.0148,25809.0,25808.0,4.01178266]
[1693930399928,0.0148,25809.0,25808.0,4.01148266]
[1693930400167,0.0148,25809.0,25808.0,4.10579455]
[1693930400362,0.0148,25809.0,25808.0,4.10585455]
[1693930400778,0.0148,25809.0,25808.0,4.01310266]
[1693930401006,0.0148,25809.0,25808.0,4.01628266]
[1693930401220,0.0148,25809.0,25808.0,4.01100266]
[1693930401425,0.0148,25809.0,25808.0,4.01106266]
[1693930401629,0.0148,25809.0,25808.0,4.01112266]
[1693930401812,0.0148,25809.0,25808.0,4.01052266]
[1693930402031,0.0148,25809.0,25808.0,4.01970266]
[1693930402230,0.0148,25809.0,25808.0,4.02018266]
[1693930402485,0.0148,25809.0,25808.0,4.11317455]
[1693930402658,0.0148,25809.0,25808.0,4.11125455]
[1693930402885,0.0148,25809.0,25808.0,4.01772266]
[1693930403161,0.0148,25809.0,25808.0,4.01760266]
[1693930403365,0.0148,25809.0,25808.0,4.01784266]
[1693930403583,0.0148,25809.0,25808.0,4.01562266]
[1693930403797,0.0148,25809.0,25808.0,4.01712266]
[1693930404026,0.0148,25809.0,25808.0,4.01730266]
[1693930404237,0.0148,25809.0,25808.0,4.01670266]
[1693930404441,0.0148,25809.0,25808.0,4.01682266]
[1693930404674,0.0148,25809.0,25808.0,4.01466266]
[1693930404888,0.0148,25809.0,25808.0,4.01154266]
[1693930405093,0.0148,25809.0,25808.0,4.00872266]
[1693930405301,0.0148,25809.0,25808.0,4.00860266]
[1693930405508,0.0148,25809.0,25808.0,4.00872266]
[1693930405715,0.0148,25809.0,25808.0,4.10147455]
[1693930405915,0.0148,25809.0,25808.0,4.09997455]
[1693930406102,0.0148,25809.0,25808.0,4.09589455]
[1693930406335,0.0148,25809.0,25808.0,3.90496266]
[1693930406743,0.0148,25809.0,25808.0,3.99801455]
[1693930407766,0.0148,25809.0,25808.0,3.90496266]
[1693930408591,0.0148,25809.0,25808.0,3.97456266]
[1693930408793,0.0148,25809.0,25808.0,3.98152266]
[1693930408992,0.0148,25809.0,25808.0,3.98254266]
[1693930409419,0.0148,25809.0,25808.0,3.98188266]
[1693930409625,0.0148,25809.0,25808.0,3.98266266]
[1693930409802,0.0148,25809.0,25808.0,3.98500266]
[1693930410148,0.0148,25809.0,25808.0,4.00732266]
[1693930410345,0.0148,25809.0,25808.0,4.03044266]
[1693930410550,0.0148,25809.0,25808.0,4.02996266]
[1693930410754,0.0148,25809.0,25808.0,4.02888266]
[1693930410997,0.0148,25809.0,25808.0,4.02876266]
[1693930411149,0.0148,25809.0,25808.0,4.02852266]
[1693930411351,0.0148,25809.0,25808.0,4.02732266]
[1693930411551,0.0148,25809.0,25808.0,4.02870266]
[1693930411807,0.0148,25809.0,25808.0,4.02858266]
[1693930412123,0.0148,25809.0,25808.0,4.02828266]
[1693930412339,0.0148,25809.0,25808.0,4.02846266]
[1693930412538,0.0148,25809.0,25808.0,4.02768266]
[1693930412743,0.0148,25809.0,25808.0,4.02732266]
[1693930412896,0.0148,25809.0,25808.0,4.02384266]
[1693930413105,0.0148,25809.0,25808.0,4.02180266]
[1693930413303,0.0148,25809.0,25808.0,4.02144266]
[1693930413528,0.0148,25809.0,25808.0,4.02138266]
[1693930413729,0.0148,25809.0,25808.0,4.01418266]
[1693930413930,0.0148,25809.0,25808.0,4.00884266]
[1693930414132,0.0148,25809.0,25808.0,3.99426266]
[1693930414311,0.0148,25809.0,25808.0,3.92496266]
[1693930414989,0.01473828,25809.0,25808.0,3.92496266]
[1693930415186,0.01473828,25809.0,25808.0,4.00194266]
[1693930415434,0.01473828,25809.0,25808.0,4.00326266]
[1693930415652,0.01473828,25809.0,25808.0,4.94700175]
[1693930415811,0.01473828,25809.0,25808.0,4.91292175]
[1693930415991,0.01473828,25809.0,25808.0,4.91640175]
[1693930416197,0.01473828,25809.0,25808.0,4.91592175]
[1693930416393,0.01473828,25809.0,25808.0,4.91532175]
[1693930416594,0.01473828,25809.0,25808.0,4.91520175]
[1693930416834,0.01473828,25809.0,25808.0,4.91424175]
[1693930417030,0.01473828,25809.0,25808.0,4.88336175]
[1693930417267,0.01473828,25809.0,25808.0,4.89068175]
[1693930417475,0.01473828,25809.0,25808.0,4.89860175]
[1693930417642,0.01473828,25809.0,25808.0,4.88852175]
[1693930417886,0.01473828,25809.0,25808.0,4.88888175]
[1693930418124,0.01473828,25809.0,25808.0,4.91340175]
[1693930418290,0.01473828,25809.0,25808.0,4.91292175]
[1693930418609,0.01473828,25809.0,25808.0,4.91124175]
[1693930418768,0.01473828,25809.0,25808.0,4.91016175]
[1693930418971,0.01473828,25809.0,25808.0,4.90968175]
[1693930419165,0.01473828,25809.0,25808.0,4.90824175]
[1693930419377,0.01473828,25809.0,25808.0,4.77066175]
[1693930419581,0.01473828,25809.0,25808.0,4.77192175]
[1693930419837,0.01473828,25809.0,25808.0,4.77198175]
[1693930420046,0.01473828,25809.0,25808.0,4.77156175]
[1693930420176,0.01473828,25809.0,25808.0,4.77174175]
[1693930420385,0.01473828,25809.0,25808.0,4.77294175]
[1693930420580,0.01473828,25809.0,25808.0,4.77060175]
[1693930420815,0.01473828,25809.0,25808.0,4.76562175]
[1693930421015,0.01473828,25809.0,25808.0,4.76184175]
[1693930421227,0.01473828,25809.0,25808.0,4.76214175]
[1693930421444,0.01473828,25809.0,25808.0,4.76208175]
[1693930421619,0.01473828,25809.0,25808.0,4.76202175]
[1693930421825,0.01473828,25809.0,25808.0,4.76130175]
[1693930422019,0.01473828,25809.0,25808.0,4.76178175]
[1693930422261,0.01473828,25809.0,25808.0,4.76316175]
[1693930422488,0.01473828,25809.0,25808.0,4.75848175]
[1693930422729,0.01473828,25809.0,25808.0,4.75818175]
[1693930422906,0.01473828,25809.0,25808.0,4.63748175]
[1693930423120,0.01473828,25809.0,25808.0,4.63634175]
[1693930423310,0.01473828,25809.0,25808.0,4.12320456]
[1693930423542,0.01473828,25809.0,25808.0,4.11552456]
[1693930423746,0.01473828,25809.0,25808.0,4.11306456]
[1693930424074,0.01473828,25809.0,25808.0,4.14120456]
[1693930424255,0.01473828,25809.0,25808.0,4.30744444]
[1693930424470,0.01473828,25809.0,25808.0,4.45924444]
[1693930424677,0.01473828,25809.0,25808.0,4.96194734]
[1693930424897,0.01473828,25809.0,25808.0,4.96338734]
[1693930425099,0.01473828,25809.0,25808.0,4.96242734]
[1693930425311,0.01473828,25809.0,25808.0,4.96350734]
[1693930425533,0.06,25814.0,25813.0,0.06]
[1693930425747,0.0198,25818.0,25814.0,0.02]
[1693930425963,0.0198,25818.0,25815.0,2.11077738]
[1693930426190,0.18045088,25818.0,25817.0,0.1024]
[1693930426395,0.0198,25818.0,25817.0,4.04243538]
[1693930426603,0.0198,25818.0,25817.0,3.88777727]
[1693930426809,0.18627655,25818.0,25817.0,4.48537727]
[1693930427393,0.0198,25818.0,25817.0,4.48537727]
[1693930428024,0.0198,25818.0,25817.0,4.51037727]
[1693930428231,0.0198,25818.0,25817.0,4.55276908]
[1693930428803,0.0198,25818.0,25817.0,4.65516908]
[1693930429107,0.0198,25818.0,25817.0,4.70016908]
[1693930429306,0.0198,25818.0,25817.0,4.69631685]
[1693930429483,0.0198,25818.0,25817.0,4.67131685]
[1693930430143,0.0198,25818.0,25817.0,4.71013673]
[1693930430316,0.0198,25818.0,25817.0,4.94282154]
[1693930430518,0.0198,25818.0,25817.0,4.94438154]
[1693930430716,0.0198,25818.0,25817.0,4.91776154]
[1693930430996,0.0198,25818.0,25817.0,4.88010154]
[1693930431201,0.0198,25818.0,25817.0,5.9727702]
[1693930431561,0.0198,25818.0,25817.0,6.01151789]
[1693930431766,0.0198,25818.0,25817.0,5.98549789]
[1693930431984,0.0198,25818.0,25817.0,5.90266539]
[1693930432150,0.0198,25818.0,25817.0,5.91148539]
[1693930432403,0.0198,25818.0,25817.0,6.04414539]
[1693930432586,0.0198,25818.0,25817.0,6.07430539]
[1693930432788,0.0198,25818.0,25817.0,5.84183337]
[1693930432965,0.0198,25819.0,25817.0,5.84447337]
[1693930433141,0.0198,25819.0,25818.0,1.53763098]
[1693930433341,0.0198,25819.0,25818.0,4.67456998]
[1693930433662,0.0198,25819.0,25818.0,4.67402998]
[1693930433851,0.0198,25819.0,25818.0,4.67132998]
[1693930434046,0.0198,25819.0,25818.0,4.64606998]
[1693930434304,0.0198,25819.0,25818.0,4.67058998]
[1693930434480,0.0198,25819.0,25818.0,4.66866998]
[1693930434841,0.0198,25819.0,25818.0,4.46260079]
[1693930435040,0.0198,25819.0,25818.0,4.47022079]
[1693930435225,0.0198,25819.0,25818.0,4.46512079]
[1693930435356,0.0198,25819.0,25818.0,4.68786078]
[1693930435558,0.0198,25819.0,25818.0,4.45954079]
[1693930435799,0.0198,25819.0,25818.0,4.46572079]
[1693930436017,0.0198,25819.0,25818.0,4.46548079]
[1693930436331,0.0198,25819.0,25818.0,4.46452079]
[1693930436527,0.0198,25819.0,25818.0,4.46476079]
[1693930436728,0.0198,25819.0,25818.0,4.46278079]
[1693930436961,0.0198,25819.0,25818.0,4.46188079]
[1693930437084,0.0198,25819.0,25818.0,4.46176079]
[1693930437293,0.0198,25819.0,25818.0,4.46116079]
[1693930437529,0.0198,25819.0,25818.0,4.46170079]
[1693930437731,0.0198,25819.0,25818.0,4.46674079]
[1693930437915,0.0198,25819.0,25818.0,4.46668079]
[1693930438117,0.0198,25819.0,25818.0,4.74587126]
[1693930438403,0.0198,25819.0,25818.0,4.74569126]
[1693930438509,0.0198,25819.0,25818.0,4.73783126]
[1693930438723,0.0198,25819.0,25818.0,5.37931198]
[1693930438941,0.0198,25819.0,25818.0,4.73861126]
[1693930439186,0.0198,25819.0,25818.0,4.73975126]
[1693930439392,0.0198,25819.0,25818.0,4.76117126]
[1693930439603,0.0198,25819.0,25818.0,4.47364079]
[1693930439783,0.0198,25819.0,25818.0,4.46974079]
[1693930439984,0.0198,25819.0,25818.0,4.46968079]
[1693930440264,0.0198,25819.0,25818.0,4.44600079]
[1693930440696,0.0198,25819.0,25818.0,4.47178079]
[1693930440936,0.0198,25819.0,25818.0,4.47166079]
[1693930441112,0.0198,25819.0,25818.0,4.47136079]
[1693930441317,0.1565,25822.0,25819.0,0.0396]
[1693930441515,0.1565,25822.0,25821.0,0.1024]
[1693930441714,0.2254,25823.0,25821.0,2.79620791]
[1693930441972,0.2254,25823.0,25822.0,1.47875825]
[1693930442170,0.0198,25823.0,25822.0,3.80235725]
[1693930442591,0.0198,25823.0,25822.0,4.50235725]
[1693930442943,0.0198,25823.0,25822.0,4.54475833]
[1693930443786,0.0198,25823.0,25822.0,4.33808199]
[1693930444384,0.0198,25823.0,25822.0,4.36308199]
[1693930445193,0.0198,25823.0,25822.0,4.35923051]
[1693930446386,0.21962361,25823.0,25822.0,4.35923051]
[1693930446999,0.0198,25823.0,25822.0,4.35923051]
[1693930447812,0.24335656,25823.0,25822.0,4.35923051]
[1693930448744,0.24335656,25823.0,25822.0,4.59084015]
[1693930449511,0.28934222,25823.0,25822.0,1.78204736]
[1693930449687,0.28934222,25823.0,25822.0,1.96733899]
[1693930449842,0.28934222,25823.0,25822.0,2.74187199]
[1693930450241,0.28934222,25823.0,25822.0,2.55658036]
[1693930450444,0.28434222,25823.0,25822.0,2.55658036]
[1693930450664,0.23835656,25823.0,25822.0,3.33111336]
[1693930450869,0.0148,25823.0,25822.0,3.33111336]
[1693930451273,0.19117986,25823.0,25822.0,3.33111336]
[1693930451683,0.19117986,25823.0,25822.0,3.51640674]
[1693930452251,0.19117986,25823.0,25822.0,3.33111336]
[1693930452693,0.19117986,25823.0,25822.0,3.28480219]
[1693930453234,0.0148,25823.0,25822.0,3.28480219]
[1693930453435,0.0148,25823.0,25822.0,4.05933519]
[1693930453565,0.0148,25823.0,25822.0,4.29094483]
[1693930453771,0.0148,25823.0,25822.0,4.59469163]
[1693930460111,0.0148,25823.0,25822.0,4.49229163]
[1693930460329,0.0098,25823.0,25822.0,4.49229163]
[1693930460919,0.05036383,25823.0,25822.0,0.7]
[1693930461080,0.05036383,25823.0,25822.0,0.81410354]
[1693930461274,0.26794214,25823.0,25822.0,0.81410354]
[1693930461487,0.26794214,25823.0,25822.0,1.13863407]
[1693930465701,0.26794214,25823.0,25822.0,0.95318805]
[1693930465901,0.26794214,25823.0,25822.0,1.13863407]
[1693930466484,0.26794214,25823.0,25822.0,0.95318805]
[1693930467024,0.26794214,25823.0,25822.0,0.17865505]
[1693930467172,0.26794214,25823.0,25822.0,0.27146503]
[1693930467831,0.26794214,25823.0,25822.0,0.17865505]
[1693930468042,0.26994214,25823.0,25822.0,0.20365505]
[1693930468748,0.27194214,25823.0,25822.0,0.22865505]
[1693930470673,0.27194214,25823.0,25822.0,0.3215537]
[1693930471021,0.27194214,25823.0,25822.0,0.41410107]
[1693930471835,0.27194214,25823.0,25822.0,0.22865505]
[1693930472563,2.48027283,25823.0,25822.0,0.08957054]
[1693930472770,2.56027283,25823.0,25822.0,0.08957054]
[1693930473965,2.55627283,25823.0,25822.0,0.03957054]
[1693930474078,2.69082691,25823.0,25822.0,0.03957054]
[1693930474283,2.69282691,25823.0,25822.0,0.025]
[1693930474689,2.69282691,25823.0,25822.0,0.06731125]
[1693930475376,2.69482691,25823.0,25822.0,0.09231125]
[1693930476146,2.59242691,25823.0,25822.0,0.09231125]
[1693930476349,1.81792391,25823.0,25822.0,0.09231125]
[1693930476606,1.79792391,25823.0,25822.0,0.09231125]
[1693930481150,1.75736008,25823.0,25822.0,0.09231125]
[1693930481354,0.0138,25823.0,25822.0,0.09231125]
[1693930485121,0.0138,25823.0,25822.0,2.90495552]
[1693930485277,0.0138,25823.0,25822.0,3.31429552]
[1693930485496,0.0138,25823.0,25822.0,3.31531552]
[1693930485701,0.0138,25823.0,25822.0,3.31327552]
[1693930485903,0.0138,25823.0,25822.0,3.31267552]
[1693930486098,0.0138,25823.0,25822.0,3.29111552]
[1693930486374,0.0118,25823.0,25822.0,3.26641552]
[1693930486514,0.0118,25823.0,25822.0,3.29099552]
[1693930486882,0.0118,25823.0,25822.0,3.29075552]
[1693930487080,0.0118,25823.0,25822.0,3.26485552]
[1693930487289,0.0118,25823.0,25822.0,3.26401552]
[1693930487494,0.0118,25823.0,25822.0,3.26323552]
[1693930487704,0.0098,25823.0,25822.0,3.93709552]
[1693930487912,0.0098,25823.0,25822.0,3.93715552]
[1693930488114,0.0098,25823.0,25822.0,3.96185552]
[1693930488331,0.0098,25823.0,25822.0,3.96239552]
[1693930488520,0.0098,25823.0,25822.0,3.96149552]
[1693930488726,0.0098,25823.0,25822.0,3.96173552]
[1693930488930,0.0098,25823.0,25822.0,3.93673552]
[1693930489136,0.0098,25823.0,25822.0,3.98601552]
[1693930489336,0.0098,25823.0,25822.0,3.98643552]
[1693930489545,0.0098,25823.0,25822.0,3.99117552]
[1693930489949,0.0098,25823.0,25822.0,3.98901552]
[1693930490154,0.0098,25823.0,25822.0,3.98709552]
[1693930490369,0.0098,25823.0,25822.0,3.98673552]
[1693930490562,0.0098,25823.0,25822.0,3.98691552]
[1693930490763,0.0098,25823.0,25822.0,3.98493552]
[1693930490969,0.0098,25823.0,25822.0,3.98625552]
[1693930491335,0.0098,25823.0,25822.0,3.98607552]
[1693930491517,0.0098,25823.0,25822.0,3.98595552]
[1693930491723,0.0098,25823.0,25822.0,3.98553552]
[1693930491923,0.0098,25823.0,25822.0,3.98523552]
[1693930492132,0.0098,25823.0,25822.0,3.97581552]
[1693930492377,0.0098,25823.0,25822.0,3.97587552]
[1693930492574,0.0098,25823.0,25822.0,3.97521552]
[1693930492784,0.0098,25823.0,25822.0,3.97557552]
[1693930493100,0.0098,25823.0,25822.0,3.97737552]
[1693930493301,0.0098,25823.0,25822.0,3.97539552]
[1693930493499,0.0098,25823.0,25822.0,3.97599552]
[1693930493712,0.0098,25823.0,25822.0,3.97809552]
[1693930493906,0.0098,25823.0,25822.0,3.97791552]
[1693930494108,0.0098,25823.0,25822.0,3.97635552]
[1693930494283,0.0098,25823.0,25822.0,3.97563552]
[1693930494486,0.0098,25823.0,25822.0,3.97533552]
[1693930494696,0.0098,25823.0,25822.0,3.97215552]
[1693930494904,0.0098,25823.0,25822.0,3.97233552]
[1693930495051,0.0098,25823.0,25822.0,3.97167552]
[1693930495255,0.0098,25823.0,25822.0,3.97149552]
[1693930495454,0.0098,25823.0,25822.0,3.97077552]
[1693930495650,0.0098,25823.0,25822.0,3.97161552]
[1693930495855,0.0098,25823.0,25822.0,3.97107552]
[1693930496079,0.0098,25823.0,25822.0,3.97287552]
[1693930496282,0.0098,25823.0,25822.0,3.97185552]
[1693930496477,0.0098,25823.0,25822.0,3.97161552]
[1693930496682,0.0098,25823.0,25822.0,3.97047552]
[1693930496925,0.0098,25823.0,25822.0,3.97101552]
[1693930497124,0.0098,25823.0,25822.0,3.97155552]
[1693930497277,0.0098,25823.0,25822.0,3.97137552]
[1693930497483,0.0098,25823.0,25822.0,3.97143552]
[1693930497707,0.0098,25823.0,25822.0,3.97233552]
[1693930498067,0.0098,25823.0,25822.0,3.97215552]
[1693930498266,0.0098,25823.0,25822.0,3.99821552]
[1693930498486,0.0098,25823.0,25822.0,3.99995552]
[1693930498725,0.0098,25823.0,25822.0,3.99977552]
[1693930498902,0.0098,25823.0,25822.0,3.99959552]
[1693930499061,0.0098,25823.0,25822.0,3.99899552]
[1693930499264,0.0098,25823.0,25822.0,3.99713552]
[1693930499467,0.0098,25823.0,25822.0,3.99797552]
[1693930499669,0.0098,25823.0,25822.0,4.00709552]
[1693930499869,0.0098,25823.0,25822.0,4.00655552]
[1693930500165,0.0098,25823.0,25822.0,4.00559552]
[1693930500364,0.0098,25823.0,25822.0,4.01969552]
[1693930500595,0.0098,25823.0,25822.0,4.1172954]
[1693930500797,0.0098,25823.0,25822.0,4.0982154]
[1693930501140,0.0098,25823.0,25822.0,4.0991154]
[1693930501423,0.0098,25823.0,25822.0,4.1045154]
[1693930501652,0.0098,25823.0,25822.0,4.1009154]
[1693930501886,0.0098,25823.0,25822.0,4.0989354]
[1693930502089,0.0098,25823.0,25822.0,4.1003754]
[1693930502267,0.0098,25823.0,25822.0,4.1032554]
[1693930502594,0.0098,25823.0,25822.0,4.1093754]
[1693930502722,0.0098,25823.0,25822.0,4.1094354]
[1693930502924,0.0098,25823.0,25822.0,4.1102754]
[1693930503153,0.0098,25823.0,25822.0,4.1103354]
[1693930503355,0.0098,25823.0,25822.0,4.1123754]
[1693930503554,0.0098,25823.0,25822.0,4.1121954]
[1693930503733,0.0098,25823.0,25822.0,4.1122554]
[1693930503939,0.0098,25823.0,25822.0,4.1145954]
[1693930504305,0.0098,25823.0,25822.0,4.1186154]
[1693930504505,0.0098,25823.0,25822.0,4.1211354]
[1693930504713,0.0098,25823.0,25822.0,4.1203554]
[1693930504914,0.0098,25823.0,25822.0,4.1287554]
[1693930505263,0.0098,25823.0,25822.0,4.1305554]
[1693930505570,0.0098,25823.0,25822.0,4.1187354]
[1693930505825,0.0098,25823.0,25822.0,4.1161554]
[1693930506006,0.0098,25823.0,25822.0,4.1147154]
[1693930506351,0.0098,25823.0,25822.0,4.05261552]
[1693930506463,0.0098,25823.0,25822.0,4.05309552]
[1693930506694,0.0098,25823.0,25822.0,4.05747552]
[1693930506925,0.0098,25823.0,25822.0,4.05939552]
[1693930507137,0.0098,25823.0,25822.0,4.06227552]
[1693930507304,0.0098,25823.0,25822.0,4.06287552]
[1693930507528,0.0098,25823.0,25822.0,4.06161552]
[1693930507688,0.0098,25823.0,25822.0,4.05873552]
[1693930507883,0.0098,25823.0,25822.0,4.05891552]
[1693930508109,0.0098,25823.0,25822.0,4.06083552]
[1693930508309,0.0098,25823.0,25822.0,4.06089552]
[1693930508486,0.0098,25823.0,25822.0,4.05375552]
[1693930508697,0.0098,25823.0,25822.0,4.05597552]
[1693930508905,0.0098,25823.0,25822.0,4.06131552]
[1693930509105,0.0098,25823.0,25822.0,4.06389552]
[1693930509310,0.0098,25823.0,25822.0,4.06353552]
[1693930509506,0.0098,25823.0,25822.0,4.06347552]
[1693930509712,0.0098,25823.0,25822.0,4.06977552]
[1693930509911,0.0098,25823.0,25822.0,4.06569552]
[1693930510131,0.0098,25823.0,25822.0,4.06359552]
[1693930510415,0.0098,25823.0,25822.0,4.07591475]
[1693930510814,0.0098,25823.0,25822.0,4.05875475]
[1693930511089,0.0098,25823.0,25822.0,4.05941475]
[1693930511292,0.0098,25823.0,25822.0,4.05953475]
[1693930511501,0.0098,25823.0,25822.0,4.05959475]
[1693930511705,0.0098,25823.0,25822.0,4.06805475]
[1693930511906,0.0098,25823.0,25822.0,4.06823475]
[1693930512169,0.0098,25823.0,25822.0,4.06847475]
[1693930512340,0.0098,25823.0,25822.0,4.06925475]
[1693930512542,0.0098,25823.0,25822.0,4.07345475]
[1693930512740,0.0098,25823.0,25822.0,4.05279475]
[1693930512965,0.0098,25823.0,25822.0,4.07189475]
[1693930513167,0.0098,25823.0,25822.0,4.07183475]
[1693930513342,0.0098,25823.0,25822.0,4.06955475]
[1693930513561,0.0098,25823.0,25822.0,4.06787475]
[1693930513915,0.0098,25823.0,25822.0,4.06571475]
[1693930514125,0.0098,25823.0,25822.0,4.06583475]
[1693930514279,0.0098,25823.0,25822.0,4.06571475]
[1693930514480,0.0098,25823.0,25822.0,4.06583475]
[1693930514698,0.0098,25823.0,25822.0,4.06577475]
[1693930514903,0.0098,25823.0,25822.0,4.06511475]
[1693930515113,0.0098,25823.0,25822.0,4.06505475]
[1693930515310,0.0098,25823.0,25822.0,4.06511475]
[1693930515483,0.0098,25823.0,25822.0,4.06445475]
[1693930515685,0.0098,25823.0,25822.0,4.06457475]
[1693930515889,0.0098,25823.0,25822.0,4.06529475]
[1693930516110,0.0098,25823.0,25822.0,4.06559475]
[1693930516317,0.0098,25823.0,25822.0,4.06565475]
[1693930516514,0.0098,25823.0,25822.0,4.06577475]
[1693930516691,0.0098,25823.0,25822.0,4.06649475]
[1693930517089,0.0098,25823.0,25822.0,4.07375475]
[1693930517288,0.0098,25823.0,25822.0,4.07495475]
[1693930517518,0.0098,25823.0,25822.0,4.07639475]
[1693930517745,0.0098,25823.0,25822.0,4.05717475]
[1693930517950,0.0098,25823.0,25822.0,4.07837475]
[1693930518163,0.0098,25823.0,25822.0,4.07831475]
[1693930518374,0.0098,25823.0,25822.0,4.07789475]
[1693930518507,0.0098,25823.0,25822.0,4.07525475]
[1693930518707,0.0098,25823.0,25822.0,4.07285475]
[1693930519253,0.0098,25823.0,25822.0,4.07327475]
[1693930519459,0.0098,25823.0,25822.0,4.07375475]
[1693930519596,0.0098,25823.0,25822.0,4.05345475]
[1693930519799,0.0098,25823.0,25822.0,4.13205274]
[1693930519997,0.0098,25823.0,25822.0,4.07267475]
[1693930520206,0.0098,25823.0,25822.0,4.06559475]
[1693930520402,0.0098,25823.0,25822.0,4.06577475]
[1693930520603,0.0098,25823.0,25822.0,4.06643475]
[1693930520878,0.0098,25823.0,25822.0,4.06631475]
[1693930521107,0.0098,25823.0,25822.0,4.04613475]
[1693930521309,0.0098,25823.0,25822.0,4.06577475]
[1693930521540,0.0098,25823.0,25822.0,4.06607475]
[1693930521745,0.0098,25823.0,25822.0,4.06277475]
[1693930522030,0.0098,25823.0,25822.0,4.06361475]
[1693930522225,0.0098,25823.0,25822.0,4.06379475]
[1693930522424,0.0098,25823.0,25822.0,4.04379475]
[1693930522635,0.0098,25823.0,25822.0,4.06607475]
[1693930522843,0.0098,25823.0,25822.0,4.01743475]
[1693930523048,0.0098,25823.0,25822.0,2.26538875]
[1693930523252,0.0098,25823.0,25822.0,1.87874348]
[1693930523253,0.03267806,25823.0,25822.0,1.87874348]
[1693930523768,0.03267806,25823.0,25822.0,1.86684425]
[1693930524192,0.03267806,25823.0,25822.0,1.09231125]
[1693930524392,0.30199007,25823.0,25822.0,0.79231125]
[1693930525215,0.30199007,25823.0,25822.0,0.09231125]
[1693930525428,0.30199007,25823.0,25822.0,0.04231125]
[1693930525607,0.30199007,25823.0,25822.0,0.06731125]
[1693930525933,0.30199007,25823.0,25822.0,0.05]
[1693930526136,0.30199007,25823.0,25822.0,0.025]
[1693930526342,0.30199007,25823.0,25822.0,0.09223166]
[1693930527527,0.0098,25823.0,25822.0,0.09223166]
[1693930530151,0.0098,25823.0,25822.0,2.87207593]
[1693930530352,0.0098,25823.0,25822.0,2.98635593]
[1693930530565,0.0098,25823.0,25822.0,3.98401593]
[1693930530772,0.0098,25823.0,25822.0,4.00209593]
[1693930530974,0.0098,25823.0,25822.0,4.00125593]
[1693930531178,0.0098,25823.0,25822.0,3.99771593]
[1693930531382,0.0098,25823.0,25822.0,3.99441593]
[1693930531584,0.0098,25823.0,25822.0,3.99405593]
[1693930531778,0.0098,25823.0,25822.0,3.99375593]
[1693930531982,0.0098,25823.0,25822.0,3.99291593]
[1693930532187,0.0098,25823.0,25822.0,3.99633593]
[1693930532385,0.0098,25823.0,25822.0,3.99747593]
[1693930532657,0.0098,25823.0,25822.0,3.22096293]
[1693930532872,0.0098,25823.0,25822.0,3.04351122]
[1693930533632,0.0098,25823.0,25822.0,3.11119122]
[1693930533835,0.0098,25823.0,25822.0,3.11107122]
[1693930534040,0.0098,25823.0,25822.0,3.11161122]
[1693930534245,0.0098,25823.0,25822.0,3.88938422]
[1693930534445,0.0098,25823.0,25822.0,3.11395122]
[1693930534692,0.0098,25823.0,25822.0,3.11275122]
[1693930534897,0.0098,25823.0,25822.0,3.11263122]
[1693930535152,0.0098,25823.0,25822.0,3.11227122]
[1693930535349,0.0098,25823.0,25822.0,4.0684641]
[1693930535554,0.0098,25823.0,25822.0,4.21175595]
[1693930535833,0.0098,25823.0,25822.0,4.1181241]
[1693930536142,0.0098,25823.0,25822.0,4.20263595]
[1693930536344,0.0098,25823.0,25822.0,4.1091241]
[1693930536474,0.0098,25823.0,25822.0,4.20047595]
[1693930536680,0.0098,25823.0,25822.0,4.19459595]
[1693930536888,0.0098,25823.0,25822.0,4.19099595]
[1693930537172,0.0098,25823.0,25822.0,4.0977241]
[1693930537382,0.0098,25823.0,25822.0,4.0903441]
[1693930537585,0.0098,25823.0,25822.0,4.0895041]
[1693930537995,0.0098,25823.0,25822.0,3.2949111]
[1693930538203,0.0098,25823.0,25822.0,3.04351122]
[1693930538409,0.0098,25823.0,25822.0,1.88233295]
[1693930538584,0.0098,25823.0,25822.0,1.10779995]
[1693930540177,0.0098,25823.0,25822.0,0.40779995]
[1693930541261,0.29092025,25823.0,25822.0,0.40779995]
[1693930542840,0.29092025,25823.0,25822.0,0.10779995]
[1693930544137,1.06542325,25823.0,25822.0,0.10779995]
[1693930545703,0.29092025,25823.0,25822.0,0.10779995]
[1693930545909,0.0098,25823.0,25822.0,0.10779995]
[1693930548157,0.0098,25823.0,25822.0,2.81804422]
[1693930548401,0.0098,25823.0,25822.0,3.51804422]
[1693930549121,0.0098,25823.0,25822.0,3.62044422]
[1693930549272,0.0098,25823.0,25822.0,3.70468422]
[1693930549479,0.0098,25823.0,25822.0,3.70384422]
[1693930549682,0.0098,25823.0,25822.0,3.69676422]
[1693930549884,0.0098,25823.0,25822.0,3.69442422]
[1693930550082,0.0098,25823.0,25822.0,3.69394422]
[1693930550427,0.0098,25823.0,25822.0,3.69286422]
[1693930550658,0.0098,25823.0,25822.0,3.62044422]
[1693930550861,0.0098,25823.0,25822.0,2.74351122]
[1693930550974,0.0098,25823.0,25822.0,1.19444522]
[1693930551176,0.0098,25823.0,25822.0,0.80779995]
[1693930551395,0.10962356,25823.0,25822.0,0.80779995]